fUSD/lending_fUSD_20260409
["ID","MTS","AMOUNT","RATE_DAILY","PERIOD"]
[420169828,1775748651997,-474.419336,0.00015599,2]
[420169829,1775748652007,-474.419336,0.00015599,2]
[420169830,1775748652016,-279.006935,0.00015599,2]
[420169831,1775748652027,-474.419336,0.00015599,2]
[420169832,1775748652036,-474.419336,0.00015599,2]
[420169833,1775748652046,-372.425841,0.00015599,2]
[420169834,1775748652056,-195.345994,0.00015599,2]
[420169835,1775748652066,-151.0,0.00015599,2]
[420169836,1775748652075,-372.425841,0.00015599,2]
[420169837,1775748652085,-195.345994,0.00015599,2]
[420169838,1775748652094,-195.345994,0.00015599,2]
[420169839,1775748652104,-372.425841,0.00015599,2]
[420169840,1775748652114,-195.345994,0.00015599,2]
[420169841,1775748652124,-372.425841,0.00015599,2]
[420169842,1775748652134,-500.0,0.00015599,2]
[420169843,1775748652144,-500.0,0.00015599,2]
[420169844,1775748652153,-500.0,0.00015599,2]
[420169845,1775748652163,-500.0,0.00015599,2]
[420169846,1775748652173,-500.0,0.00015599,2]
[420169847,1775748652184,-151.0,0.00015599,2]
[420169848,1775748652194,-151.0,0.00015599,2]
[420169849,1775748652205,-176.844784,0.00015599,2]
[420169850,1775748652215,-500.0,0.00015599,2]
[420169851,1775748652224,-500.0,0.00015599,2]
[420169852,1775748652234,-500.0,0.00015599,2]
[420169853,1775748652244,-500.0,0.00015599,2]
[420169854,1775748652253,-500.0,0.00015599,2]
[420169855,1775748652263,-151.0,0.00015599,2]
[420169856,1775748652273,-151.0,0.00015599,2]
[420169857,1775748652283,-238.5106,0.00015599,2]
[420169858,1775748652294,-151.0,0.00015599,2]
[420169859,1775748652304,-234.585026,0.00015599,2]
[420169860,1775748652314,-151.0,0.00015599,2]
[420169861,1775748652324,-151.0,0.00015599,2]
[420169862,1775748652335,-151.0,0.00015599,2]
[420169863,1775748652344,-234.585026,0.00015599,2]
[420169864,1775748652355,-151.0,0.00015599,2]
[420169865,1775748652365,-151.0,0.00015599,2]
[420169866,1775748652375,-234.585026,0.00015599,2]
[420169867,1775748652384,-207.625735,0.00015599,2]
[420169868,1775748652394,-151.0,0.00015599,2]
[420169869,1775748652403,-151.0,0.00015599,2]
[420169870,1775748652413,-234.585026,0.00015599,2]
[420169871,1775748652423,-151.0,0.00015599,2]
[420169872,1775748652433,-151.0,0.00015599,2]
[420169873,1775748652442,-151.0,0.00015599,2]
[420169874,1775748652454,-151.0,0.00015599,2]
[420169875,1775748652463,-245.932165,0.00015599,2]
[420169876,1775748652473,-245.932165,0.00015599,2]
[420169877,1775748652483,-196.567714,0.00015599,2]
[420169878,1775748652493,-245.932165,0.00015599,2]
[420169879,1775748652503,-151.0,0.00015599,2]
[420169880,1775748652513,-196.567714,0.00015599,2]
[420169881,1775748652523,-245.932165,0.00015599,2]
[420169882,1775748652533,-151.0,0.00015599,2]
[420169883,1775748652542,-196.567714,0.00015599,2]
[420169884,1775748652553,-170.192916,0.00015599,2]
[420169885,1775748652562,-196.567714,0.00015599,2]
[420169886,1775748652572,-151.0,0.00015599,2]
[420169887,1775748652582,-151.0,0.00015599,2]
[420169888,1775748652592,-151.0,0.00015599,2]
[420169889,1775748652601,-151.0,0.00015599,2]
[420169890,1775748652611,-151.0,0.00015599,2]
[420169891,1775748652620,-151.0,0.00015599,2]
[420169892,1775748652630,-151.0,0.00015599,2]
[420169893,1775748652640,-151.0,0.00015599,2]
[420169894,1775748652650,-151.0,0.00015599,2]
[420169895,1775748652660,-151.0,0.00015599,2]
[420169896,1775748652669,-151.0,0.00015599,2]
[420169897,1775748652679,-151.0,0.00015599,2]
[420169898,1775748652689,-151.0,0.00015599,2]
[420169899,1775748652699,-151.0,0.00015599,2]
[420169900,1775748652709,-151.0,0.00015599,2]
[420169901,1775748652718,-151.0,0.00015599,2]
[420169902,1775748652728,-151.0,0.00015599,2]
[420169903,1775748652738,-151.0,0.00015599,2]
[420169904,1775748652748,-151.0,0.00015599,2]
[420169905,1775748652758,-240.793271,0.00015599,2]
[420169906,1775748652768,-172.688758,0.00015599,2]
[420169907,1775748652778,-151.0,0.00015599,2]
[420169908,1775748652788,-151.0,0.00015599,2]
[420169909,1775748652798,-151.0,0.00015599,2]
[420169910,1775748652809,-151.0,0.00015599,2]
[420169911,1775748652818,-1689.56,0.00015599,2]
[420169912,1775748653037,-1689.56,0.00015599,2]
[420169913,1775748653048,-1689.56,0.00015599,2]
[420169914,1775748653059,-1689.56,0.00015599,2]
[420169915,1775748653069,-1689.56,0.00015599,2]
[420169916,1775748653079,-500.0,0.00015599,2]
[420169917,1775748653088,-500.0,0.00015599,2]
[420169918,1775748653098,-500.0,0.00015599,2]
[420169919,1775748653108,-500.0,0.00015599,2]
[420169920,1775748653118,-500.0,0.00015599,2]
[420169921,1775748653128,-500.0,0.00015599,2]
[420169922,1775748653138,-500.0,0.00015599,2]
[420169923,1775748653148,-500.0,0.00015599,2]
[420169924,1775748653158,-500.0,0.00015599,2]
[420169925,1775748653167,-500.0,0.00015599,2]
[420169926,1775748653178,-500.0,0.00015599,2]
[420169927,1775748653188,-586.00861759,0.00015599,2]
[420169928,1775748653198,-500.0,0.00015599,2]
[420169929,1775748653209,-500.0,0.00015599,2]
[420169930,1775748653220,-500.0,0.00015599,2]
[420169931,1775748653230,-500.0,0.00015599,2]
[420169932,1775748653242,-500.0,0.00015599,2]
[420169933,1775748653253,-500.0,0.00015599,2]
[420169934,1775748653262,-500.0,0.00015599,2]
[420169935,1775748653272,-500.0,0.00015599,2]
[420169936,1775748653283,-500.0,0.00015599,2]
[420169937,1775748653293,-500.0,0.00015599,2]
[420169938,1775748653305,-500.0,0.00015599,2]
[420169939,1775748653315,-500.0,0.00015599,2]
[420169940,1775748653325,-500.0,0.00015599,2]
[420169941,1775748653336,-500.0,0.00015599,2]
[420169942,1775748653346,-500.0,0.00015599,2]
[420169943,1775748653356,-500.0,0.00015599,2]
[420169944,1775748653366,-300.0,0.00015599,2]
[420169945,1775748653378,-500.0,0.00015599,2]
[420169946,1775748653390,-500.0,0.00015599,2]
[420169947,1775748653400,-591.95860575,0.00015599,2]
[420169948,1775748653410,-517.0,0.000156,5]
[420169949,1775748653421,-207.0,0.000156,5]
[420169950,1775748653431,-1418.04944069,0.000156,2]
[420169951,1775748653441,-200.0,0.000156,2]
[420169952,1775748653451,-187.78006525,0.000156,2]
[420169953,1775748653461,-70258.94729664,0.000156,2]
[420169954,1775748654781,-860.584629,0.00015573,2]
[420169955,1775748654791,-1228.71294318,0.000156,2]
[420169956,1775748654803,-52690.25886404,0.000156,2]
[420169957,1775748654826,-113014.37529121,0.000156,2]
[420169961,1775749206421,3399.0,8.9e-05,2]
[420169963,1775749540108,-1497.256948,0.00010398,2]
[420169964,1775749540129,-170.38230801,0.0001045,2]
[420169965,1775749540150,-250.0,0.00010453,2]
[420169966,1775749540172,-404.5038899,0.00010456,2]
[420169967,1775749625203,-1179.90898801,0.00010456,2]
[420169968,1775749682582,-485.0,0.00012,30]
[420169969,1775749756205,-155.78,0.00010242,2]
[420169970,1775749756229,-3415.58712209,0.00010456,2]
[420169971,1775749756254,-3703.70842926,0.00010467,2]
[420169972,1775749756277,-300.0,0.00010471,2]
[420169973,1775749756301,-1200.0,0.00010472,2]
[420169974,1775749756325,-500.0,0.00010473,2]
[420169975,1775749756347,-500.0,0.00010473,2]
[420169976,1775749756371,-300.0,0.00010489,2]
[420169977,1775749756393,-16044.70726329,0.0001049,2]
[420169978,1775749756415,-150.0,0.00010493,2]
[420169979,1775749756438,-151.0,0.00010494,2]
[420169980,1775749756461,-151.0,0.00010494,2]
[420169981,1775749756486,-151.0,0.00010494,2]
[420169982,1775749756509,-151.0,0.00010494,2]
[420169983,1775749756533,-151.0,0.00010494,2]
[420169984,1775749756556,-151.0,0.00010494,2]
[420169985,1775749756579,-500.0,0.00010494,2]
[420169986,1775749756603,-151.0,0.00010494,2]
[420169987,1775749756627,-500.0,0.00010494,2]
[420169988,1775749756650,-151.0,0.00010494,2]
[420169989,1775749756675,-151.0,0.00010494,2]
[420169990,1775749756699,-500.0,0.00010494,2]
[420169991,1775749756723,-151.0,0.00010494,2]
[420169992,1775749756746,-500.0,0.00010494,2]
[420169993,1775749756766,-200.0,0.00010494,2]
[420169994,1775749756788,-151.0,0.00010494,2]
[420169995,1775749756810,-500.0,0.00010494,2]
[420169996,1775749756832,-500.0,0.00010494,2]
[420169997,1775749756857,-151.0,0.00010494,2]
[420169998,1775749756881,-500.0,0.00010494,2]
[420169999,1775749756906,-500.0,0.00010494,2]
[420170000,1775749756930,-500.0,0.00010494,2]
[420170001,1775749756951,-500.0,0.00010494,2]
[420170002,1775749756974,-500.0,0.00010494,2]
[420170003,1775749756994,-151.0,0.00010494,2]
[420170004,1775749757015,-500.0,0.00010494,2]
[420170005,1775749757038,-151.0,0.00010494,2]
[420170006,1775749757062,-151.0,0.00010494,2]
[420170007,1775749757084,-151.0,0.00010494,2]
[420170008,1775749757104,-151.0,0.00010494,2]
[420170009,1775749757126,-151.0,0.00010494,2]
[420170010,1775749757149,-151.0,0.00010494,2]
[420170011,1775749757174,-500.0,0.00010494,2]
[420170012,1775749757196,-151.0,0.00010494,2]
[420170013,1775749757219,-500.0,0.00010494,2]
[420170014,1775749757241,-151.0,0.00010494,2]
[420170015,1775749757263,-500.0,0.00010494,2]
[420170016,1775749757285,-500.0,0.00010494,2]
[420170017,1775749757307,-151.0,0.00010494,2]
[420170018,1775749757332,-500.0,0.00010494,2]
[420170019,1775749757355,-151.0,0.00010494,2]
[420170020,1775749757378,-500.0,0.00010494,2]
[420170021,1775749757400,-151.0,0.00010494,2]
[420170022,1775749757423,-500.0,0.00010494,2]
[420170023,1775749757446,-151.0,0.00010494,2]
[420170024,1775749757471,-500.0,0.00010494,2]
[420170025,1775749757492,-151.0,0.00010494,2]
[420170026,1775749757514,-151.0,0.00010494,2]
[420170027,1775749757536,-500.0,0.00010494,2]
[420170028,1775749757559,-500.0,0.00010494,2]
[420170029,1775749757580,-151.0,0.00010494,2]
[420170030,1775749757602,-500.0,0.00010494,2]
[420170031,1775749757624,-151.0,0.00010494,2]
[420170032,1775749757646,-500.0,0.00010494,2]
[420170033,1775749757669,-151.0,0.00010494,2]
[420170034,1775749757691,-500.0,0.00010494,2]
[420170035,1775749757713,-151.0,0.00010494,2]
[420170036,1775749757736,-500.0,0.00010494,2]
[420170037,1775749757760,-151.0,0.00010494,2]
[420170038,1775749757785,-500.0,0.00010494,2]
[420170039,1775749757806,-151.0,0.00010494,2]
[420170040,1775749757829,-594.61806827,0.00010494,2]
[420170041,1775749757850,-151.0,0.00010494,2]
[420170042,1775749757873,-1156.41848616,0.00010494,2]
[420170043,1775749757896,-500.0,0.00010499,2]
[420170044,1775749757920,-1145.79,0.00010499,2]
[420170045,1775749757943,-493.93571896,0.00010499,2]
[420170046,1775749757965,-182.82419012,0.00010499,2]
[420170047,1775749757995,-500.0,0.00010499,2]
[420170048,1775749758023,-500.0,0.00010499,2]
[420170049,1775749758051,-500.0,0.00010499,2]
[420170050,1775749758078,-500.0,0.00010499,2]
[420170051,1775749758106,-555.12631459,0.00010499,2]
[420170052,1775749758132,-500.0,0.00010499,2]
[420170053,1775749758160,-500.0,0.00010499,2]
[420170054,1775749758187,-500.0,0.00010499,2]
[420170055,1775749758217,-500.0,0.00010499,2]
[420170056,1775749758244,-500.0,0.00010499,2]
[420170057,1775749758270,-500.0,0.00010499,2]
[420170058,1775749758295,-933.2771,0.000105,2]
[420170059,1775749758318,-156586.3664191,0.000105,2]
[420170067,1775749831400,-300.0,0.00010398,2]
[420170068,1775749831411,-174.20102077,0.00010398,2]
[420170069,1775749831423,-300.9238582,0.00010398,2]
[420170070,1775749831435,-724.87512103,0.00010398,2]
[420170071,1775749831445,-23.13454452,0.00010399,2]
[420170072,1775749831491,-1606.72727158,0.00010399,2]
[420170073,1775749831503,-1998.50742485,0.00010399,2]
[420170074,1775749831515,-3640.59180879,0.00010399,2]
[420170075,1775749831528,-39942.43147356,0.00010399,2]
[420170076,1775749831570,-46163.2906767,0.00010399,2]
[420170077,1775749831580,-500.0,0.00010473,2]
[420170078,1775749831590,-500.47252773,0.00010473,2]
[420170079,1775749831600,-500.0,0.00010473,2]
[420170080,1775749831611,-500.0,0.00010473,2]
[420170081,1775749831621,-500.0,0.00010473,2]
[420170082,1775749831630,-500.0,0.00010473,2]
[420170083,1775749831640,-521853.6767809,0.000105,2]
[420170084,1775749831649,-3209.0,0.000105,5]
[420170085,1775749831659,-162.0,0.000105,3]
[420170086,1775749831669,-961.71078818,0.000109,2]
[420170087,1775749831680,-103205.69,0.00010909,2]
[420170088,1775749831690,-1485.1,0.00010959,2]
[420170089,1775749831700,-789.90153133,0.00011042,2]
[420170090,1775749831710,-1778.28058732,0.00011099,2]
[420170092,1775749831720,-243.78614628,0.00011099,2]
[420170094,1775749831731,-770.64569046,0.00011109,2]
[420170096,1775749831741,-961.71078818,0.00011271,2]
[420170098,1775749831751,-243.78614628,0.00011278,2]
[420170100,1775749831761,-374.0,0.00011325,2]
[420170102,1775749831771,-556.0,0.00011347,2]
[420170103,1775749831780,-1778.28058732,0.00011367,2]
[420170105,1775749831790,-420.0,0.00011433,2]
[420170106,1775749831800,-775.0,0.00011438,2]
[420170107,1775749831811,-250.0,0.00011495,2]
[420170108,1775749831822,-150.0,0.000115,2]
[420170109,1775749831831,-255.0,0.00011521,2]
[420170110,1775749831841,-155.78,0.00011522,2]
[420170112,1775749831851,-500.0,0.00011763,2]
[420170114,1775749831861,-243.78614628,0.00011856,2]
[420170116,1775749831870,-151.0,0.00011872,2]
[420170117,1775749831880,-1778.28058732,0.00011933,2]
[420170118,1775749831890,-927.42,0.00011945,2]
[420170119,1775749831899,-1.27419277,0.00012,30]
[420170120,1775749831910,-961.71078818,0.00012043,2]
[420170121,1775749831920,-243.78614628,0.00012433,2]
[420170122,1775749831930,-1778.28058732,0.000125,2]
[420170123,1775749831940,-587.0,0.00012571,2]
[420170124,1775749831950,-2360.01,0.000126,2]
[420170125,1775749831960,-2904.02,0.000126,2]
[420170126,1775749831970,-531.71,0.000126,2]
[420170127,1775749831979,-150.0,0.00012654,2]
[420170128,1775749831990,-172.5877,0.000128,2]
[420170129,1775749832000,-155.78,0.00012803,2]
[420170130,1775749832010,-961.71078818,0.00012814,2]
[420170131,1775749832020,-243.78614628,0.00013011,2]
[420170132,1775749832030,-1778.28058732,0.00013067,2]
[420170133,1775749832040,-505.0,0.000131,2]
[420170134,1775749832050,-1485.1,0.00013122,2]
[420170135,1775749832061,-500.0,0.0001337,2]
[420170136,1775749832071,-961.71078818,0.00013586,2]
[420170137,1775749832081,-243.78614628,0.00013589,2]
[420170138,1775749832091,-160.0,0.00013629,2]
[420170139,1775749832102,-1778.28058732,0.00013633,2]
[420170140,1775749832112,-500.0,0.00013698,2]
[420170141,1775749832121,-500.0,0.00013698,2]
[420170142,1775749832131,-500.0,0.00013698,2]
[420170143,1775749832141,-1214.88,0.00013698,2]
[420170144,1775749832151,-1214.88,0.00013698,2]
[420170145,1775749832161,-1214.88,0.00013698,2]
[420170146,1775749832171,-166.66,0.00013699,2]
[420170147,1775749832180,-200.0,0.00013699,2]
[420170148,1775749832190,-5004.07,0.0001373,2]
[420170149,1775749832201,-1800.0,0.00013764,2]
[420170150,1775749832211,-823.0,0.00013823,2]
[420170151,1775749832221,-166.66,0.00013836,2]
[420170152,1775749832232,-166.66,0.00013973,2]
[420170153,1775749832242,-600.0,0.00014038,2]
[420170154,1775749832252,-155.78,0.00014083,2]
[420170155,1775749832263,-198.5768,0.000141,2]
[420170156,1775749832272,-166.66,0.0001411,2]
[420170157,1775749832282,-505.0,0.00014145,2]
[420170158,1775749832293,-243.78614628,0.00014167,2]
[420170159,1775749832303,-3240.0,0.00014191,2]
[420170160,1775749832312,-1778.28058732,0.000142,2]
[420170161,1775749832323,-166.66,0.00014247,2]
[420170162,1775749832333,-325.16735252,0.00014338,2]
[420170163,1775749832342,-961.71078818,0.00014357,2]
[420170164,1775749832353,-155.0,0.00014362,2]
[420170165,1775749832362,-622.0,0.00014363,2]
[420170166,1775749832371,-3524.0,0.00014363,2]
[420170167,1775749832381,-1347.0,0.00014363,2]
[420170168,1775749832391,-926.0,0.00014363,2]
[420170169,1775749832401,-1264.0,0.00014363,2]
[420170170,1775749832411,-1218.0,0.00014363,2]
[420170171,1775749832421,-415.0,0.00014363,2]
[420170172,1775749832431,-3773.0,0.00014363,2]
[420170173,1775749832442,-166.66,0.00014384,2]
[420170174,1775749832451,-1189.89,0.00014504,2]
[420170175,1775749832461,-7952.16,0.00014504,2]
[420170176,1775749832471,-3495.72,0.00014504,2]
[420170177,1775749832484,-1910.87,0.00014504,2]
[420170178,1775749832494,-4999.99,0.00014504,2]
[420170179,1775749832504,-150.99,0.00014504,2]
[420170180,1775749832514,-243.78614628,0.00014744,2]
[420170181,1775749832524,-578.20924308,0.00014745,2]
[420170182,1775749832534,-601.3376128,0.00014745,2]
[420170183,1775749832544,-1280.88388878,0.00014745,2]
[420170184,1775749832554,-799.54513345,0.00014745,2]
[420170185,1775749832565,-174.61919141,0.00014745,2]
[420170186,1775749832575,-1778.28058732,0.00014767,2]
[420170187,1775749832585,-168.41,0.00014789,2]
[420170188,1775749832595,-250.0,0.00014795,2]
[420170189,1775749832604,-204.47724025,0.00014984,2]
[420170190,1775749832614,-237.66164828,0.00014984,2]
[420170191,1775749832624,-203.69802776,0.00014984,2]
[420170192,1775749832634,-151.06665937,0.00014984,2]
[420170193,1775749832644,-155.38060716,0.00014984,2]
[420170194,1775749832654,-192.77206898,0.00014984,2]
[420170195,1775749832664,-186.27654411,0.00014984,2]
[420170196,1775749832674,-167.54971676,0.00014984,2]
[420170197,1775749832685,-151.11596225,0.00014984,2]
[420170198,1775749832694,-247.1393488,0.00014984,2]
[420170199,1775749832704,-154.96518214,0.00014984,2]
[420170200,1775749832714,-237.42194369,0.00014984,2]
[420170201,1775749832724,-215.150243,0.00015019,7]
[420170202,1775749832735,-345.214995,0.00015019,7]
[420170203,1775749832745,-376.875748,0.00015019,7]
[420170204,1775749832755,-560.0,0.00015047,2]
[420170205,1775749832764,-1929.0,0.00015047,2]
[420170206,1775749832774,-2595.96,0.00015057,2]
[420170207,1775749832783,-961.71078818,0.00015129,2]
[420170208,1775749832793,-1800.0,0.00015134,2]
[420170209,1775749832803,-378.421786,0.0001519,7]
[420170210,1775749832813,-505.0,0.00015191,3]
[420170211,1775749832823,-1152.0,0.00015199,2]
[420170212,1775749832832,-472.40987105,0.0001528,2]
[420170213,1775749832843,-1485.1,0.00015285,2]
[420170214,1775749832852,-500.0,0.00015287,2]
[420170215,1775749832862,-160.0,0.00015288,7]
[420170216,1775749832872,-223.269119,0.00015288,7]
[420170217,1775749832883,-286.538238,0.00015288,7]
[420170218,1775749832892,-290.59335476,0.00015288,2]
[420170219,1775749832902,-181.08010149,0.00015293,2]
[420170220,1775749832912,-2161.8,0.0001531,2]
[420170221,1775749832921,-382.66415998,0.0001532,2]
[420170222,1775749832930,-344.88871709,0.0001532,2]
[420170223,1775749832939,-451.85429083,0.0001532,2]
[420170224,1775749832948,-344.94460372,0.0001532,2]
[420170225,1775749832958,-282.34196659,0.0001532,2]
[420170226,1775749832968,-252.58453482,0.0001532,2]
[420170227,1775749832977,-290.69962948,0.0001532,2]
[420170228,1775749832988,-243.78614628,0.00015322,2]
[420170229,1775749832998,-3235.0,0.00015325,2]
[420170230,1775749833007,-500.0,0.00015325,2]
[420170231,1775749833017,-500.0,0.00015325,2]
[420170232,1775749833027,-500.0,0.00015325,2]
[420170233,1775749833036,-500.0,0.00015325,2]
[420170234,1775749833046,-500.0,0.00015325,2]
[420170235,1775749833055,-500.0,0.00015325,2]
[420170236,1775749833064,-500.0,0.00015325,2]
[420170237,1775749833073,-500.0,0.00015325,2]
[420170238,1775749833083,-547.56033639,0.00015325,2]
[420170239,1775749833092,-150.0,0.00015325,2]
[420170240,1775749833102,-1778.28058732,0.00015333,2]
[420170241,1775749833112,-165.0,0.00015336,2]
[420170242,1775749833122,-155.78,0.00015363,2]
[420170243,1775749833132,-228.4794,0.000154,2]
[420170244,1775749833141,-2000.0,0.00015405,2]
[420170245,1775749833152,-600.0,0.00015408,2]
[420170246,1775749833161,-846.37584,0.0001544,2]
[420170247,1775749833172,-846.37584,0.0001544,2]
[420170248,1775749833181,-846.37584,0.0001545,2]
[420170249,1775749833191,-500.0,0.00015475,2]
[420170250,1775749833200,-200.0,0.00015475,2]
[420170251,1775749833210,-1000.0,0.000155,2]
[420170252,1775749833220,-12447.501,0.000155,2]
[420170253,1775749833231,-306.0,0.000155,2]
[420170254,1775749833241,-763.0,0.000155,2]
[420170255,1775749833251,-313.0,0.000155,2]
[420170256,1775749833260,-2260.58954653,0.000155,2]
[420170257,1775749833270,-500.0,0.00015572,2]
[420170258,1775749833279,-500.0,0.00015572,2]
[420170259,1775749833289,-328.61051967,0.00015572,2]
[420170260,1775749833299,-500.0,0.00015572,2]
[420170261,1775749833309,-500.0,0.00015573,2]
[420170262,1775749833318,-503.04036452,0.00015573,2]
[420170263,1775749833328,-565.40450783,0.00015573,2]
[420170264,1775749833338,-500.0,0.00015573,2]
[420170265,1775749833347,-500.0,0.00015573,2]
[420170266,1775749833357,-560.82964069,0.00015573,2]
[420170267,1775749833366,-500.0,0.00015573,2]
[420170268,1775749833376,-500.42156323,0.00015573,2]
[420170269,1775749833386,-500.0,0.00015573,2]
[420170270,1775749833396,-500.0,0.00015573,2]
[420170271,1775749833407,-500.0,0.00015573,2]
[420170272,1775749833416,-500.0,0.00015573,2]
[420170273,1775749833427,-500.0,0.00015573,2]
[420170274,1775749833437,-500.0,0.00015573,2]
[420170275,1775749833446,-500.0,0.00015573,2]
[420170276,1775749833456,-500.0,0.00015573,2]
[420170277,1775749833467,-500.0,0.00015573,2]
[420170278,1775749833477,-500.0,0.00015573,2]
[420170279,1775749833488,-500.0,0.00015573,2]
[420170280,1775749833498,-393.86579415,0.00015573,2]
[420170281,1775749833508,-2260.58954651,0.0001558,2]
[420170282,1775749833518,-169.3801515,0.00015584,2]
[420170283,1775749833528,-506.30577434,0.0001559,2]
[420170284,1775749833538,-500.0,0.00015598,2]
[420170285,1775749833547,-1214.88,0.00015598,2]
[420170286,1775749833557,-300.0,0.00015599,2]
[420170287,1775749833566,-500.0,0.00015599,2]
[420170288,1775749833576,-500.0,0.00015599,2]
[420170289,1775749833586,-500.0,0.00015599,2]
[420170290,1775749833595,-500.0,0.00015599,2]
[420170291,1775749833605,-500.0,0.00015599,2]
[420170292,1775749833615,-500.0,0.00015599,2]
[420170293,1775749833624,-500.0,0.00015599,2]
[420170294,1775749833634,-500.0,0.00015599,2]
[420170295,1775749833644,-278.76,0.00015599,2]
[420170296,1775749833654,-500.0,0.00015599,2]
[420170297,1775749833663,-500.0,0.00015599,2]
[420170298,1775749833673,-1214.88,0.00015599,2]
[420170299,1775749833682,-1214.88,0.00015599,2]
[420170300,1775749833691,-1214.88,0.00015599,2]
[420170301,1775749833702,-500.0,0.00015599,2]
[420170302,1775749833712,-640.99851197,0.00015599,2]
[420170303,1775749833722,-8418.08904364,0.000156,2]
[420170304,1775749833739,-927.69623708,0.000156,2]
[420170305,1775749833750,-456.50541151,0.000156,2]
[420170306,1775749833762,-6338.03952115,0.000156,2]
[420170307,1775749833773,-2802.62646491,0.000156,2]
[420170308,1775749833786,-1127.54480993,0.000156,2]
[420170309,1775749833811,-346.84803172,0.000156,2]
[420170310,1775749833823,-12124.90390716,0.000156,2]
[420170317,1775749837540,-964.0,0.00011289,2]
[420170318,1775749837550,-1059.0,0.00011311,2]
[420170319,1775749837562,-267.803147,0.00015016,7]
[420170320,1775749837572,-193.72890318,0.00015288,2]
[420170321,1775749837583,-15070.04225028,0.000156,2]
[420170325,1775749840074,-193.72890319,0.00015288,2]
[420170326,1775749840084,-486.26559681,0.000156,2]
[420170327,1775749840681,-2471.0,0.00014363,2]
[420170328,1775749840690,-100738.94451036,0.000156,2]
[420170329,1775749840845,-843.17167313,0.000156,2]
[420170330,1775749840991,-1187.35566211,0.000156,2]
[420170365,1775749842810,-1035.95027195,0.00015288,2]
[420170366,1775749842820,-19909.68152555,0.000156,2]
[420170375,1775749845424,-857.82135752,0.000156,2]
[420170376,1775749845436,-1538.77951083,0.000156,2]
[420170377,1775749845485,-6690.98703556,0.000156,2]
[420170378,1775749845498,-475.0625998,0.000156,2]
[420170379,1775749845703,-6545.04278986,0.000156,2]
[420170380,1775749845798,-559420.81458311,0.000156,2]
[420170381,1775749845860,-72081.90430433,0.000156,2]
[420170383,1775750113779,-108.99998548,0.00046576,120]
[420170384,1775750113805,-688.62,0.00046576,120]
[420170385,1775750113830,-500.0,0.00046576,120]
[420170386,1775750113857,-688.74325146,0.00046576,120]
[420170387,1775750113881,-500.0,0.00046576,120]
[420170388,1775750113906,-500.0,0.00046576,120]
[420170389,1775750113931,-500.0,0.00046576,120]
[420170390,1775750113955,-379.25214859,0.00046576,120]
[420170391,1775750113979,-500.0,0.00046576,120]
[420170392,1775750114004,-426.77450025,0.00046576,120]
[420170393,1775750114030,-500.0,0.00046576,120]
[420170394,1775750114056,-500.0,0.00046576,120]
[420170395,1775750114082,-500.0,0.00046576,120]
[420170396,1775750114107,-500.0,0.00046576,120]
[420170397,1775750114133,-500.0,0.00046576,120]
[420170398,1775750114159,-500.0,0.00046576,120]
[420170399,1775750114184,-632.36,0.00046576,120]
[420170400,1775750114210,-500.0,0.00046576,120]